fUSD/lending_fUSD_20240412
["ID","MTS","AMOUNT","RATE_DAILY","PERIOD"]
[322226798,1712896242366,-500.0,0.00027397,2]
[322226799,1712896242376,-500.0,0.00027397,2]
[322226800,1712896242385,-502.15042791,0.00027397,2]
[322226801,1712896242401,-2678.66,0.00027397,2]
[322226802,1712896242447,-500.0,0.00027397,2]
[322226803,1712896242457,-500.0,0.00027397,2]
[322226804,1712896242467,-500.0,0.00027397,2]
[322226805,1712896242479,-509.02014718,0.00027397,2]
[322226806,1712896242489,-500.0,0.00027397,2]
[322226807,1712896242498,-736.72,0.00027397,2]
[322226808,1712896242507,-502.65038155,0.00027397,2]
[322226809,1712896242518,-500.0,0.00027397,2]
[322226810,1712896242527,-500.0,0.00027397,2]
[322226811,1712896242536,-500.0,0.00027397,2]
[322226812,1712896242546,-1263.24,0.00027397,2]
[322226813,1712896242556,-500.0,0.00027397,2]
[322226814,1712896242566,-502.50619104,0.00027397,2]
[322226815,1712896242575,-500.0,0.00027397,2]
[322226816,1712896242584,-507.5100647,0.00027397,2]
[322226817,1712896242594,-501.83354577,0.00027397,2]
[322226818,1712896242603,-500.69061724,0.00027397,2]
[322226819,1712896242612,-500.0,0.00027397,2]
[322226820,1712896242621,-500.0,0.00027397,2]
[322226821,1712896242630,-500.0,0.00027397,2]
[322226822,1712896242640,-500.0,0.00027397,2]
[322226823,1712896242649,-500.0,0.00027397,2]
[322226824,1712896242659,-510.33530704,0.00027397,2]
[322226825,1712896242669,-688.0,0.00027397,2]
[322226826,1712896242678,-712.37,0.00027397,2]
[322226827,1712896242688,-324.04092285,0.00027397,2]
[322226828,1712896242697,-500.0,0.00027397,2]
[322226829,1712896242706,-500.0,0.00027397,2]
[322226830,1712896242717,-500.0,0.00027397,2]
[322226831,1712896242727,-1188.04,0.00027397,2]
[322226832,1712896242737,-500.0,0.00027397,2]
[322226833,1712896242746,-500.0,0.00027397,2]
[322226834,1712896242755,-500.0,0.00027397,2]
[322226835,1712896242764,-500.0,0.00027397,2]
[322226836,1712896242773,-500.0,0.00027397,2]
[322226837,1712896242783,-2276.68,0.00027397,2]
[322226838,1712896242793,-500.0,0.00027397,2]
[322226839,1712896242802,-500.0,0.00027397,2]
[322226840,1712896242812,-500.0,0.00027397,2]
[322226841,1712896242823,-514.93,0.00027397,2]
[322226842,1712896242834,-591.63,0.00027397,2]
[322226843,1712896242844,-502.32518569,0.00027397,2]
[322226844,1712896242855,-506.63535354,0.00027397,2]
[322226845,1712896242864,-500.0,0.00027397,2]
[322226846,1712896242873,-500.0,0.00027397,2]
[322226847,1712896242883,-503.42888952,0.00027397,2]
[322226848,1712896242892,-500.0,0.00027397,2]
[322226849,1712896242901,-502.83966142,0.00027397,2]
[322226850,1712896242911,-500.0,0.00027397,2]
[322226851,1712896242920,-517.15931962,0.00027397,2]
[322226852,1712896242930,-572.14,0.00027397,2]
[322226853,1712896242939,-3356.5,0.00027397,2]
[322226854,1712896242948,-500.0,0.00027397,2]
[322226855,1712896242957,-581.56,0.00027397,2]
[322226856,1712896242968,-500.0,0.00027397,2]
[322226857,1712896242977,-500.90088228,0.00027397,2]
[322226859,1712896242987,-500.0,0.00027397,2]
[322226860,1712896242996,-223.88653362,0.00027397,2]
[322226861,1712896243007,-506.27727418,0.00027397,2]
[322226862,1712896243017,-500.0,0.00027397,2]
[322226863,1712896243027,-500.0,0.00027397,2]
[322226864,1712896243038,-500.0,0.00027397,2]
[322226865,1712896243048,-500.0,0.00027397,2]
[322226866,1712896243057,-500.0,0.00027397,2]
[322226867,1712896243067,-503.82848664,0.00027397,2]
[322226868,1712896243077,-514.05,0.00027397,2]
[322226870,1712896243087,-324.47242625,0.00027397,2]
[322226871,1712896243097,-500.0,0.00027397,2]
[322226872,1712896243107,-500.0,0.00027397,2]
[322226873,1712896243116,-6783.82,0.00027397,2]
[322226874,1712896243126,-503.87420324,0.00027397,2]
[322226875,1712896243136,-500.0,0.00027397,2]
[322226876,1712896243148,-500.0,0.00027397,2]
[322226877,1712896243159,-500.0,0.00027397,2]
[322226878,1712896243169,-500.0,0.00027397,2]
[322226879,1712896243180,-500.0,0.00027397,2]
[322226880,1712896243191,-501.22790478,0.00027397,2]
[322226881,1712896243203,-500.0,0.00027397,2]
[322226882,1712896243214,-500.0,0.00027397,2]
[322226883,1712896243224,-277.32093154,0.00027397,2]
[322226884,1712896243235,-500.0,0.00027397,2]
[322226885,1712896243245,-510.40951716,0.00027397,2]
[322226886,1712896243254,-500.0,0.00027397,2]
[322226887,1712896243264,-531.02,0.00027397,2]
[322226888,1712896243275,-500.0,0.00027397,2]
[322226889,1712896243284,-500.0,0.00027397,2]
[322226890,1712896243294,-500.0,0.00027397,2]
[322226891,1712896243305,-500.0,0.00027397,2]
[322226892,1712896243315,-510.26407661,0.00027397,2]
[322226893,1712896243325,-500.0,0.00027397,2]
[322226894,1712896243335,-6642.9,0.00027397,2]
[322226895,1712896243346,-1380.55,0.00027397,2]
[322226896,1712896243355,-500.0,0.00027397,2]
[322226897,1712896243365,-502.99868769,0.00027397,2]
[322226898,1712896243375,-684.95,0.00027397,2]
[322226899,1712896243386,-500.0,0.00027397,2]
[322226900,1712896243395,-500.0,0.00027397,2]
[322226901,1712896243405,-500.0,0.00027397,2]
[322226902,1712896243416,-500.0,0.00027397,2]
[322226903,1712896243425,-500.0,0.00027397,2]
[322226904,1712896243436,-2429.04,0.00027397,2]
[322226905,1712896243447,-500.0,0.00027397,2]
[322226906,1712896243457,-503.23087242,0.00027397,2]
[322226907,1712896243467,-967.23,0.00027397,2]
[322226908,1712896243480,-500.0,0.00027397,2]
[322226909,1712896243490,-500.0,0.00027397,2]
[322226910,1712896243501,-632.99,0.00027397,2]
[322226911,1712896243511,-501.86568938,0.00027397,2]
[322226912,1712896243520,-500.0,0.00027397,2]
[322226913,1712896243532,-500.0,0.00027397,2]
[322226914,1712896243543,-500.0,0.00027397,2]
[322226915,1712896243553,-500.0,0.00027397,2]
[322226916,1712896243565,-500.0,0.00027397,2]
[322226917,1712896243575,-482.47,0.00027397,2]
[322226918,1712896243586,-500.0,0.00027397,2]
[322226919,1712896243596,-500.0,0.00027397,2]
[322226920,1712896243607,-500.0,0.00027397,2]
[322226921,1712896243617,-504.4132787,0.00027397,2]
[322226922,1712896243628,-500.0,0.00027397,2]
[322226923,1712896243638,-847.01,0.00027397,2]
[322226924,1712896243650,-501.70111322,0.00027397,2]
[322226925,1712896243840,-500.0,0.00027397,2]
[322226926,1712896243851,-500.0,0.00027397,2]
[322226927,1712896243862,-513.83279042,0.00027397,2]
[322226928,1712896243872,-1108.33,0.00027397,2]
[322226929,1712896243882,-500.0,0.00027397,2]
[322226930,1712896243892,-2082.45,0.00027397,2]
[322226931,1712896243902,-500.0,0.00027397,2]
[322226932,1712896243912,-500.0,0.00027397,2]
[322226933,1712896243922,-7450.76,0.00027397,2]
[322226934,1712896243932,-1208.02,0.00027397,2]
[322226935,1712896243943,-500.0,0.00027397,2]
[322226936,1712896243953,-500.0,0.00027397,2]
[322226937,1712896243965,-2562.0,0.00027397,2]
[322226938,1712896243975,-500.0,0.00027397,2]
[322226939,1712896243985,-500.0,0.00027397,2]
[322226940,1712896243995,-500.0,0.00027397,2]
[322226941,1712896244006,-500.0,0.00027397,2]
[322226942,1712896244015,-607.26,0.00027397,2]
[322226943,1712896244025,-506.2510266,0.00027397,2]
[322226944,1712896244035,-502.43753096,0.00027397,2]
[322226945,1712896244045,-500.0,0.00027397,2]
[322226946,1712896244055,-500.0,0.00027397,2]
[322226947,1712896244066,-1751.69,0.00027397,2]
[322226948,1712896244077,-828.79,0.00027397,2]
[322226949,1712896244087,-500.31280169,0.00027397,2]
[322226950,1712896244098,-1064.35,0.00027397,2]
[322226951,1712896244109,-863.41,0.00027397,2]
[322226952,1712896244120,-504.09282926,0.00027397,2]
[322226953,1712896244129,-515.91570215,0.00027397,2]
[322226954,1712896244139,-500.0,0.00027397,2]
[322226955,1712896244149,-656.9,0.00027397,2]
[322226956,1712896244159,-500.0,0.00027397,2]
[322226957,1712896244169,-500.68831744,0.00027397,2]
[322226958,1712896244180,-500.0,0.00027397,2]
[322226959,1712896244190,-500.0,0.00027397,2]
[322226960,1712896244200,-500.0,0.00027397,2]
[322226961,1712896244210,-11296.07,0.00027397,3]
[322226962,1712896244221,-11296.07,0.00027397,3]
[322226963,1712896244232,-11296.07,0.00027397,3]
[322226964,1712896244242,-500.0,0.00027397,2]
[322226965,1712896244253,-11296.07,0.00027397,3]
[322226966,1712896244263,-11296.07,0.00027397,3]
[322226967,1712896244274,-11296.07,0.00027397,3]
[322226968,1712896244285,-11296.07,0.00027397,3]
[322226969,1712896244294,-11296.07,0.00027397,3]
[322226970,1712896244307,-11296.07,0.00027397,3]
[322226971,1712896244316,-500.0,0.00027397,2]
[322226972,1712896244326,-1079.78,0.00027397,2]
[322226973,1712896244335,-11296.07,0.00027397,3]
[322226974,1712896244345,-11296.07,0.00027397,3]
[322226975,1712896244356,-11296.07,0.00027397,3]
[322226976,1712896244365,-502.4376753,0.00027397,2]
[322226977,1712896244375,-11296.07,0.00027397,3]
[322226978,1712896244386,-11296.07,0.00027397,3]
[322226979,1712896244396,-11296.07,0.00027397,3]
[322226980,1712896244406,-11296.07,0.00027397,3]
[322226981,1712896244415,-500.798019,0.00027397,2]
[322226982,1712896244425,-11296.07,0.00027397,3]
[322226983,1712896244435,-500.0,0.00027397,2]
[322226984,1712896244444,-11296.07,0.00027397,3]
[322226985,1712896244454,-501.49801505,0.00027397,2]
[322226986,1712896244464,-11296.07,0.00027397,3]
[322226987,1712896244475,-501.39616376,0.00027397,2]
[322226988,1712896244487,-11296.07,0.00027397,3]
[322226989,1712896244496,-263.66159769,0.00027397,2]
[322226990,1712896244506,-11296.07,0.00027397,3]
[322226991,1712896244515,-500.0,0.00027397,2]
[322226992,1712896244525,-11296.07,0.00027397,3]
[322226993,1712896244534,-11296.07,0.00027397,3]
[322226994,1712896244543,-500.0,0.00027397,2]
[322226995,1712896244553,-11296.18284029,0.00027397,3]
[322226996,1712896244563,-500.0,0.00027397,2]
[322226997,1712896244573,-504.23691204,0.00027397,2]
[322226998,1712896244582,-500.0,0.00027397,2]
[322226999,1712896244591,-2692.16,0.00027397,2]
[322227000,1712896244601,-500.0,0.00027397,2]
[322227001,1712896244610,-500.0,0.00027397,2]
[322227002,1712896244619,-207.87840597,0.00027397,2]
[322227003,1712896244629,-500.0,0.00027397,2]
[322227004,1712896244639,-937.48,0.00027397,2]
[322227005,1712896244649,-500.0,0.00027397,2]
[322227006,1712896244658,-500.0,0.00027397,2]
[322227007,1712896244667,-501.09280671,0.00027397,2]
[322227008,1712896244676,-500.0,0.00027397,2]
[322227009,1712896244686,-507.1087239,0.00027397,2]
[322227010,1712896244695,-203.78612502,0.00027397,2]
[322227011,1712896244705,-501.51208478,0.00027397,2]
[322227012,1712896244715,-500.0,0.00027397,2]
[322227013,1712896244724,-500.0,0.00027397,2]
[322227014,1712896244733,-500.0,0.00027397,2]
[322227015,1712896244743,-500.0,0.00027397,2]
[322227016,1712896244752,-3328.59,0.00027397,2]
[322227017,1712896244761,-500.0,0.00027397,2]
[322227018,1712896244771,-500.0,0.00027397,2]
[322227019,1712896244780,-874.61,0.00027397,2]
[322227020,1712896244790,-503.63348396,0.00027397,2]
[322227021,1712896244799,-500.0,0.00027397,2]
[322227022,1712896244808,-500.0,0.00027397,2]
[322227023,1712896244818,-500.0,0.00027397,2]
[322227024,1712896244827,-1727.93,0.00027397,2]
[322227025,1712896244836,-500.0,0.00027397,2]
[322227026,1712896244846,-500.0,0.00027397,2]
[322227027,1712896244855,-500.0,0.00027397,2]
[322227028,1712896244864,-500.0,0.00027397,2]
[322227029,1712896244873,-500.0,0.00027397,2]
[322227030,1712896244882,-500.0,0.00027397,2]
[322227031,1712896244891,-500.0,0.00027397,2]
[322227032,1712896244901,-168.31944145,0.00027397,2]
[322227033,1712896244910,-500.0,0.00027397,2]
[322227034,1712896244919,-500.0,0.00027397,2]
[322227035,1712896244928,-3027.66,0.00027397,2]
[322227036,1712896244938,-502.89030723,0.00027397,2]
[322227037,1712896244947,-500.0,0.00027397,2]
[322227038,1712896244956,-2328.69,0.00027397,2]
[322227039,1712896244966,-500.0,0.00027397,2]
[322227040,1712896244975,-500.0,0.00027397,2]
[322227041,1712896244984,-500.0,0.00027397,2]
[322227042,1712896244993,-503.29418869,0.00027397,2]
[322227043,1712896245003,-500.0,0.00027397,2]
[322227044,1712896245012,-500.0,0.00027397,2]
[322227045,1712896245021,-1106.41,0.00027397,2]
[322227046,1712896245030,-500.0,0.00027397,2]
[322227047,1712896245039,-500.0,0.00027397,2]
[322227048,1712896245048,-500.0,0.00027397,2]
[322227049,1712896245057,-513.9,0.00027397,2]
[322227050,1712896245066,-736.17,0.00027397,2]
[322227051,1712896245075,-592.17,0.00027397,2]
[322227052,1712896245085,-491.38950636,0.00027397,2]
[322227053,1712896245093,-500.0,0.00027397,2]
[322227054,1712896245102,-500.0,0.00027397,2]
[322227055,1712896245112,-500.0,0.00027397,2]
[322227056,1712896245121,-518.4,0.00027397,2]
[322227057,1712896245130,-645.91,0.00027397,2]
[322227058,1712896245139,-1057.98,0.00027397,2]
[322227059,1712896245149,-500.0,0.00027397,2]
[322227060,1712896245158,-500.0,0.00027397,2]
[322227061,1712896245167,-388.0732423,0.00027397,2]
[322227062,1712896245176,-500.0,0.00027397,2]
[322227063,1712896245186,-500.0,0.00027397,2]
[322227064,1712896245195,-500.0,0.00027397,2]
[322227065,1712896245204,-500.0,0.00027397,2]
[322227066,1712896245214,-2101.6,0.00027397,2]
[322227067,1712896245223,-2000.0,0.00027397,2]
[322227068,1712896245232,-2058.15,0.00027397,2]
[322227069,1712896245240,-570.8,0.00027397,2]
[322227070,1712896245249,-762.28,0.00027397,2]
[322227071,1712896245258,-500.0,0.00027397,2]
[322227072,1712896245267,-3201.93,0.00027397,2]
[322227073,1712896245277,-500.0,0.00027397,2]
[322227074,1712896245286,-151.0,0.00027397,7]
[322227075,1712896245296,-151.0,0.00027397,7]
[322227076,1712896245305,-151.0,0.00027397,7]
[322227077,1712896245315,-186.867566,0.00027397,7]
[322227078,1712896245324,-151.0,0.00027397,7]
[322227079,1712896245333,-151.0,0.00027397,7]
[322227080,1712896245343,-151.0,0.00027397,7]
[322227081,1712896245352,-151.0,0.00027397,7]
[322227082,1712896245361,-290.218109,0.00027397,7]
[322227084,1712896245371,-654.38,0.00027397,10]
[322227086,1712896245380,-545.31,0.00027397,10]
[322227088,1712896245390,-250.0,0.000274,2]
[322227090,1712896245400,-253.5,0.000274,2]
[322227091,1712896245408,-2815.4626501,0.00027482,2]
[322227093,1712896245418,-1157.25049225,0.00027569,2]
[322227095,1712896245428,-7127.42422986,0.00027653,7]
[322227098,1712896245438,-192.39931173,0.00027665,2]
[322227099,1712896245447,-1280.81,0.0002767,2]
[322227102,1712896245457,-616.9,0.0002767,2]
[322227104,1712896245467,-500.0,0.00027671,2]
[322227106,1712896245479,-500.0,0.00027671,2]
[322227109,1712896245489,-172.21476321,0.00027671,2]
[322227113,1712896245500,-500.0,0.00027671,2]
[322227114,1712896245509,-500.0,0.00027671,2]
[322227118,1712896245519,-534.97408151,0.00027671,2]
[322227121,1712896245529,-500.0,0.00027671,2]
[322227123,1712896245539,-500.0,0.00027671,2]
[322227124,1712896245548,-500.0,0.00027671,2]
[322227127,1712896245558,-500.0,0.00027671,2]
[322227128,1712896245568,-500.0,0.00027671,2]
[322227130,1712896245577,-500.0,0.00027671,2]
[322227132,1712896245587,-500.0,0.00027671,2]
[322227133,1712896245596,-500.0,0.00027671,2]
[322227134,1712896245606,-500.0,0.00027671,2]
[322227135,1712896245617,-500.0,0.00027671,2]
[322227136,1712896245626,-500.0,0.00027671,2]
[322227137,1712896245636,-271.99,0.00027671,2]
[322227138,1712896245646,-500.0,0.00027671,2]
[322227139,1712896245655,-500.0,0.00027671,2]
[322227140,1712896245664,-500.0,0.00027671,2]
[322227141,1712896245674,-429.88910725,0.00027671,2]
[322227142,1712896245683,-385.09,0.00027671,2]
[322227143,1712896245692,-488.56,0.00027671,2]
[322227144,1712896245702,-500.0,0.00027671,2]
[322227145,1712896245711,-500.0,0.00027671,2]
[322227146,1712896245722,-579.02,0.00027671,2]
[322227147,1712896245732,-522.1,0.00027671,2]
[322227148,1712896245741,-500.0,0.00027671,2]
[322227149,1712896245750,-500.0,0.00027671,2]
[322227150,1712896245760,-301.95,0.00027671,2]
[322227151,1712896245769,-160.6,0.00027671,2]
[322227152,1712896245779,-500.0,0.00027671,2]
[322227153,1712896245788,-500.0,0.00027671,2]
[322227154,1712896245798,-499.12,0.00027671,2]
[322227155,1712896245807,-500.0,0.00027671,2]
[322227156,1712896245816,-500.0,0.00027671,2]
[322227157,1712896245825,-594.43,0.00027671,2]
[322227158,1712896245835,-500.0,0.00027671,2]
[322227159,1712896245844,-500.0,0.00027671,2]
[322227160,1712896245853,-500.0,0.00027671,2]
[322227161,1712896245862,-500.0,0.00027671,2]
[322227162,1712896245872,-1535.56,0.00027671,2]
[322227163,1712896245881,-500.0,0.00027671,2]
[322227164,1712896245890,-452.95,0.00027671,2]
[322227165,1712896245899,-500.0,0.00027671,2]
[322227166,1712896245907,-500.0,0.00027671,2]
[322227167,1712896245916,-607.75,0.00027671,2]
[322227168,1712896245926,-581.45,0.00027671,2]
[322227169,1712896245935,-500.0,0.00027671,2]
[322227170,1712896245943,-500.0,0.00027671,2]
[322227171,1712896245953,-500.0,0.00027671,2]
[322227172,1712896245962,-500.0,0.00027671,2]
[322227173,1712896245972,-500.0,0.00027671,2]
[322227174,1712896245981,-500.0,0.00027671,2]
[322227175,1712896245990,-500.0,0.00027671,2]
[322227176,1712896245999,-1463.88,0.00027671,2]
[322227177,1712896246009,-500.0,0.00027671,2]
[322227178,1712896246018,-500.0,0.00027671,2]
[322227179,1712896246027,-500.0,0.00027671,2]
[322227180,1712896246037,-500.0,0.00027671,2]
[322227181,1712896246046,-457.57,0.00027671,2]
[322227182,1712896246055,-500.0,0.00027671,2]
[322227183,1712896246064,-505.3,0.00027671,2]
[322227184,1712896246074,-225.32,0.00027671,2]
[322227186,1712896246083,-175.1,0.00027671,2]
[322227188,1712896246092,-500.0,0.00027671,2]
[322227190,1712896246102,-500.0,0.00027671,2]
[322227197,1712896246153,-500.0,0.00027671,2]
[322227199,1712896246162,-484.92,0.00027671,2]
[322227200,1712896246171,-500.0,0.00027671,2]
[322227203,1712896246181,-500.0,0.00027671,2]
[322227204,1712896246190,-500.0,0.00027671,2]
[322227206,1712896246199,-500.0,0.00027671,2]
[322227207,1712896246209,-500.0,0.00027671,2]
[322227208,1712896246219,-500.0,0.00027671,2]
[322227209,1712896246228,-511.13,0.00027671,2]
[322227210,1712896246237,-500.0,0.00027671,2]
[322227211,1712896246246,-500.0,0.00027671,2]
[322227212,1712896246255,-500.0,0.00027671,2]
[322227213,1712896246264,-500.0,0.00027671,2]
[322227214,1712896246273,-502.44,0.00027671,2]
[322227215,1712896246282,-444.68935743,0.00027671,2]
[322227216,1712896246291,-641.88,0.00027671,2]
[322227217,1712896246300,-198.54542893,0.00027671,2]
[322227218,1712896246309,-500.0,0.00027671,2]
[322227219,1712896246318,-519.84,0.00027671,2]
[322227220,1712896246327,-500.0,0.00027671,2]
[322227221,1712896246336,-245.95,0.00027671,2]
[322227222,1712896246345,-500.0,0.00027671,2]
[322227223,1712896246354,-500.0,0.00027671,2]
[322227224,1712896246363,-500.0,0.00027671,2]
[322227225,1712896246372,-500.0,0.00027671,2]
[322227226,1712896246381,-500.0,0.00027671,2]
[322227227,1712896246390,-514.17,0.00027671,2]
[322227228,1712896246399,-500.0,0.00027671,2]
[322227229,1712896246409,-500.0,0.00027671,2]
[322227230,1712896246418,-500.0,0.00027671,2]
[322227231,1712896246427,-500.0,0.00027671,2]
[322227232,1712896246436,-293.38,0.00027671,2]
[322227233,1712896246445,-500.0,0.00027671,2]
[322227234,1712896246454,-624.75,0.00027671,2]
[322227235,1712896246464,-500.0,0.00027671,2]
[322227236,1712896246475,-500.0,0.00027671,2]
[322227237,1712896246485,-500.0,0.00027671,2]
[322227238,1712896246495,-500.0,0.00027671,2]
[322227239,1712896246504,-393.85,0.00027671,2]
[322227240,1712896246513,-402.34752782,0.00027671,2]
[322227241,1712896246522,-500.0,0.00027671,2]
[322227242,1712896246531,-491.72,0.00027671,2]
[322227243,1712896246540,-250.0,0.00027671,2]
[322227244,1712896246549,-500.0,0.00027671,2]
[322227245,1712896246560,-213.85,0.00027671,2]
[322227246,1712896246569,-500.0,0.00027671,2]
[322227247,1712896246579,-500.0,0.00027671,2]
[322227248,1712896246588,-500.0,0.00027671,2]
[322227249,1712896246597,-500.0,0.00027671,2]
[322227250,1712896246606,-568.08,0.00027671,2]
[322227251,1712896246615,-586.74,0.00027671,2]
[322227252,1712896246624,-150.0,0.00027671,2]
[322227253,1712896246633,-500.0,0.00027671,2]
[322227254,1712896246642,-357.06,0.00027671,2]
[322227255,1712896246651,-500.0,0.00027671,2]
[322227256,1712896246660,-284.91,0.00027671,2]
[322227257,1712896246669,-920.51,0.00027671,2]
[322227258,1712896246678,-500.0,0.00027671,2]
[322227259,1712896246687,-573.08,0.00027671,2]
[322227260,1712896246696,-500.0,0.00027671,2]
[322227261,1712896246705,-500.0,0.00027671,2]
[322227262,1712896246715,-500.0,0.00027671,2]
[322227263,1712896246724,-500.0,0.00027671,2]
[322227264,1712896246733,-264.46,0.00027671,2]
[322227265,1712896246743,-500.0,0.00027671,2]
[322227266,1712896246752,-500.0,0.00027671,2]
[322227267,1712896246761,-500.0,0.00027671,2]
[322227268,1712896246771,-500.0,0.00027671,2]
[322227269,1712896246780,-500.0,0.00027671,2]
[322227270,1712896246790,-307.22,0.00027671,2]
[322227271,1712896246799,-196.94,0.00027671,2]
[322227272,1712896246808,-1280.9,0.00027671,2]
[322227273,1712896246818,-416.47,0.00027671,2]
[322227274,1712896246827,-279.92,0.00027671,2]
[322227275,1712896246836,-339.56,0.00027671,2]
[322227276,1712896246845,-500.0,0.00027671,2]
[322227277,1712896246854,-500.0,0.00027671,2]
[322227278,1712896246863,-500.0,0.00027671,2]
[322227279,1712896246873,-166.65,0.00027671,2]
[322227280,1712896246882,-500.0,0.00027671,2]
[322227281,1712896246891,-625.95,0.00027671,2]
[322227282,1712896246901,-589.51,0.00027671,2]
[322227283,1712896246909,-340.21,0.00027671,2]
[322227284,1712896246918,-607.23,0.00027671,2]
[322227285,1712896246927,-500.0,0.00027671,2]
[322227286,1712896246936,-500.0,0.00027671,2]
[322227287,1712896246945,-500.0,0.00027671,2]
[322227288,1712896246954,-500.0,0.00027671,2]
[322227289,1712896246963,-500.0,0.00027671,2]
[322227290,1712896246972,-500.0,0.00027671,2]
[322227291,1712896246982,-500.0,0.00027671,2]
[322227292,1712896246991,-546.23,0.00027671,2]
[322227293,1712896247000,-500.0,0.00027671,2]
[322227294,1712896247010,-2292.12,0.00027671,2]
[322227295,1712896247019,-486.62,0.00027671,2]
[322227296,1712896247027,-500.0,0.00027671,2]
[322227297,1712896247036,-500.0,0.00027671,2]
[322227298,1712896247046,-546.72,0.00027671,2]
[322227299,1712896247054,-500.0,0.00027671,2]
[322227300,1712896247064,-500.0,0.00027671,2]
[322227301,1712896247073,-500.0,0.00027671,2]
[322227302,1712896247082,-500.0,0.00027671,2]
[322227303,1712896247091,-2162.55,0.00027671,2]
[322227304,1712896247100,-226.58,0.00027671,2]
[322227305,1712896247109,-277.89,0.00027671,2]
[322227306,1712896247118,-3602.73,0.00027671,2]
[322227307,1712896247127,-500.0,0.00027671,2]
[322227308,1712896247135,-163.82,0.00027671,2]
[322227309,1712896247144,-500.0,0.00027671,2]
[322227310,1712896247153,-1794.89,0.00027671,2]
[322227311,1712896247162,-615.95,0.00027671,2]
[322227312,1712896247171,-9768.5,0.00027671,2]
[322227313,1712896247180,-500.0,0.00027671,2]
[322227314,1712896247189,-500.0,0.00027671,2]
[322227315,1712896247199,-200.3,0.00027671,2]
[322227316,1712896247208,-1028.65,0.00027671,2]
[322227317,1712896247217,-500.0,0.00027671,2]
[322227318,1712896247226,-500.0,0.00027671,2]
[322227319,1712896247235,-3666.64,0.00027671,2]
[322227320,1712896247244,-1387.62,0.00027671,2]
[322227321,1712896247253,-500.0,0.00027671,2]
[322227322,1712896247262,-500.0,0.00027671,2]
[322227323,1712896247272,-500.0,0.00027671,2]
[322227324,1712896247281,-500.0,0.00027671,2]
[322227325,1712896247290,-500.0,0.00027671,2]
[322227326,1712896247299,-520.41,0.00027671,2]
[322227327,1712896247309,-716.23,0.00027671,2]
[322227328,1712896247318,-178.15051646,0.00027671,2]
[322227329,1712896247328,-500.79,0.00027671,2]
[322227330,1712896247337,-1114.12,0.00027671,2]
[322227331,1712896247345,-500.0,0.00027671,2]
[322227332,1712896247354,-500.0,0.00027671,2]
[322227333,1712896247364,-554.16455901,0.00027671,2]
[322227334,1712896247373,-1962.38,0.00027671,2]
[322227335,1712896247382,-500.0,0.00027671,2]
[322227336,1712896247391,-526.87,0.00027671,2]
[322227337,1712896247400,-601.38,0.00027671,2]
[322227338,1712896247409,-500.0,0.00027671,2]
[322227339,1712896247418,-886.19,0.00027671,2]